[Event "EYCC Girls-U14 2019"]
[Site "Bratislava"]
[Date "2019.08.05"]
[Round "4.9"]
[White "Zhou, Lulu"]
[Black "Zeliantsova, Kseniya"]
[Result "0-1"]
[ECO "B38"]
[WhiteElo "1944"]
[BlackElo "1907"]
[Annotator "NA"]
[PlyCount "74"]
[EventDate "2019.08.02"]
[EventType "swiss"]
[EventCountry "SVK"]
[SourceTitle "playchess.com"]
[Source "ChessBase"]
[SourceQuality "1"]
[TimeControl "40/5400+30:1800+30"]

1. e4 {[%emt 0:00:00]} c5 {[%emt 0:00:00]} 2. Nf3 {[%emt 0:00:00]} Nc6 {[%emt 0:00:00]} 3. d4 {[%emt 0:00:00]} cxd4 {[%emt 0:00:00]} 4. Nxd4 {[%emt 0:00:00]} g6 {[%emt 0:00:00]} 5. c4 {[%emt 0:00:19]} Bg7 {[%emt 0:00:00]} 6. Be3 {[%emt 0:00:03]} Nf6 {[%emt 0:00:04]} 7. Nc3 {[%emt 0:00:17]} d6 {[%emt 0:00:08]} 8. Be2 {[%emt 0:00:10]} O-O {[%emt 0:00:13]} 9. O-O {[%emt 0:00:05]} Bd7 {[%emt 0:00:17]} 10. f3 {[%emt 0:00:08]} Nxd4 {[%emt 0:01:16]} 11. Bxd4 {[%emt 0:00:06]} Bc6 {[%emt 0:00:05]} 12. Qd2 {[%emt 0:01:16]} a5 {[%emt 0:01:20]} 13. b3 {[%emt 0:00:10]} Nd7 {[%emt 0:00:06]} 14. Bf2 {[%emt 0:01:19]} Nc5 {[%emt 0:01:23]} 15. Rab1 {[%emt 0:00:15]} e6 {[%emt 0:03:56]} 16. Rfc1 {[%emt 0:02:34]} Be5 {[%emt 0:02:49]} 17. a3 {[%emt 0:05:27]} f5 {[%emt 0:12:42]} 18. exf5 {[%emt 0:05:51]} Rxf5 {[%emt 0:00:11]} 19. b4 {[%emt 0:03:41]} axb4 {[%emt 0:27:41]} 20. axb4 {[%emt 0:00:05]} Na4 {[%emt 0:10:04]} 21. Ne4 {[%emt 0:05:11]} Bxe4 {[%emt 0:00:21]} 22. fxe4 {[%emt 0:01:18]} Rxf2 {[%emt 0:06:22]} 23. Kxf2 {[%emt 0:00:15]} Qh4+ {[%emt 0:00:07]} 24. Kf1 {[%emt 0:02:14]} Qxh2 {[%emt 0:01:28]} 25. Bf3 {[%emt 0:03:06]} Nc3 {[%emt 0:06:17]} 26. Rb2 {[%emt 0:14:26]} Qh1+ {[%emt 0:07:50]} 27. Kf2 {[%emt 0:00:16]} Qh4+ {[%emt 0:00:17]} 28. Kg1 {[%emt 0:06:54]} Nxe4 {[%emt 0:02:38]} 29. Bxe4 {[%emt 0:00:11]} Qxe4 {[%emt 0:00:04]} 30. Rb3 {[%emt 0:05:12]} Bf4 {[%emt 0:04:21]} 31. Qe1 {[%emt 0:03:55]} Qd4+ {[%emt 0:00:41]} 32. Kh1 {[%emt 0:01:14]} Bxc1 {[%emt 0:01:17]} 33. Qxc1 {[%emt 0:03:10]} Ra1 {[%emt 0:00:29]} 34. Rb1 {[%emt 0:00:06]} Rxb1 {[%emt 0:00:39]} 35. Qxb1 {[%emt 0:00:04]} Qxc4 {[%emt 0:00:02]} 36. Qa1 {[%emt 0:02:58]} Qxb4 {[%emt 0:01:41]} 37. Qf6 {[%emt 0:00:14]} Qe1+ {[%emt 0:00:04]} 0-1

[Event "EYCC Girls-U14 2019"]
[Site "Bratislava"]
[Date "2019.08.05"]
[Round "4.10"]
[White "Tarasenka, Aliaksandra"]
[Black "Rubinshtein, Kamilla"]
[Result "1-0"]
[ECO "B12"]
[WhiteElo "2231"]
[BlackElo "1799"]
[Annotator "NA"]
[PlyCount "59"]
[EventDate "2019.08.02"]
[EventType "swiss"]
[EventCountry "SVK"]
[SourceTitle "playchess.com"]
[Source "ChessBase"]
[SourceQuality "1"]
[TimeControl "40/5400+30:1800+30"]

1. e4 {[%emt 0:00:00]} c6 {[%emt 0:00:00]} 2. d4 {[%emt 0:00:28]} d5 {[%emt 0:00:00]} 3. e5 {[%emt 0:00:06]} c5 {[%emt 0:00:00]} 4. dxc5 {[%emt 0:01:06]} e6 {[%emt 0:02:35]} 5. Nf3 {[%emt 0:01:09]} Bxc5 {[%emt 0:01:46]} 6. Bd3 {[%emt 0:00:25]} Ne7 {[%emt 0:01:38]} 7. O-O {[%emt 0:01:21]} Nbc6 {[%emt 0:02:23]} 8. Nbd2 {[%emt 0:03:22]} Ng6 {[%emt 0:02:03]} 9. Nb3 {[%emt 0:01:37]} Bb6 {[%emt 0:01:40]} 10. Qe2 {[%emt 0:02:00]} O-O {[%emt 0:01:59]} 11. Bg5 {[%emt 0:22:35]} Qc7 {[%emt 0:03:19]} 12. Rae1 {[%emt 0:07:18]} Bd7 {[%emt 0:06:27]} 13. Bd2 {[%emt 0:09:53]} Rfc8 {[%emt 0:18:06]} 14. h4 {[%emt 0:09:52]} h6 {[%emt 0:12:37]} 15. h5 {[%emt 0:09:27]} Nge7 {[%emt 0:06:37]} 16. c3 {[%emt 0:06:32]} a5 {[%emt 0:09:29]} 17. Bb1 {[%emt 0:03:41]} a4 {[%emt 0:07:05]} 18. Nc1 {[%emt 0:01:03]} Nf5 {[%emt 0:04:17]} 19. g4 {[%emt 0:04:12]} Ng3 {[%emt 0:02:27]} 20. Qd3 {[%emt 0:00:18]} Nxf1 {[%emt 0:04:13]} 21. Qh7+ {[%emt 0:00:21]} Kf8 {[%emt 0:00:08]} 22. Kxf1 {[%emt 0:00:43]} Ne7 {[%emt 0:07:03]} 23. Bd3 {[%emt 0:04:35]} Ng8 {[%emt 0:02:24]} 24. g5 {[%emt 0:01:35]} hxg5 {[%emt 0:02:14]} 25. Nxg5 {[%emt 0:00:56]} Qc5 {[%emt 0:00:59]} 26. Be3 {[%emt 0:01:24]} Qc7 {[%emt 0:00:05]} 27. h6 {[%emt 0:01:35]} Nxh6 {[%emt 0:01:04]} 28. Qh8+ {[%emt 0:00:09]} Ke7 {[%emt 0:00:26]} 29. Qxg7 {[%emt 0:00:13]} Rh8 {[%emt 0:00:40]} 30. Qf6+ {[%emt 0:00:08]} 1-0

[Event "EYCC Girls-U14 2019"]
[Site "Bratislava"]
[Date "2019.08.06"]
[Round "5.1"]
[White "Anacoglu, Cisel"]
[Black "Yakimova, Mariya"]
[Result "0-1"]
[ECO "B30"]
[WhiteElo "1869"]
[BlackElo "2250"]
[Annotator "NA"]
[PlyCount "94"]
[EventDate "2019.08.02"]
[EventType "swiss"]
[EventCountry "SVK"]
[SourceTitle "playchess.com"]
[Source "ChessBase"]
[SourceQuality "1"]
[TimeControl "40/5400+30:1800+30"]

1. e4 {[%emt 0:00:00]} c5 {[%emt 0:00:00]} 2. Nf3 {[%emt 0:00:00]} Nc6 {[%emt 0:00:00]} 3. Bb5 {[%emt 0:00:00]} e5 {[%emt 0:00:00]} 4. Bxc6 {[%emt 0:00:37]} bxc6 {[%emt 0:00:00]} 5. O-O {[%emt 0:00:17]} d6 {[%emt 0:00:01]} 6. h3 {[%emt 0:00:36]} Be7 {[%emt 0:00:05]} 7. c3 {[%emt 0:03:57]} f5 {[%emt 0:00:10]} 8. exf5 {[%emt 0:12:48]} Bxf5 {[%emt 0:00:08]} 9. d3 {[%emt 0:00:11]} Nf6 {[%emt 0:00:50]} 10. Na3 {[%emt 0:00:46]} O-O {[%emt 0:00:49]} 11. Nc4 {[%emt 0:02:17]} Nd5 {[%emt 0:02:20]} 12. Re1 {[%emt 0:12:03]} Qe8 {[%emt 0:03:42]} 13. Ne3 {[%emt 0:04:26]} Be6 {[%emt 0:01:57]} 14. Nf1 {[%emt 0:01:07]} Qg6 {[%emt 0:07:34]} 15. Kh1 {[%emt 0:03:48]} Nf4 {[%emt 0:03:39]} 16. Bxf4 {[%emt 0:00:15]} Rxf4 {[%emt 0:00:09]} 17. N1h2 {[%emt 0:01:12]} Raf8 {[%emt 0:04:35]} 18. Re3 {[%emt 0:02:57]} c4 {[%emt 0:14:49]} 19. dxc4 {[%emt 0:11:47]} Bxc4 {[%emt 0:08:03]} 20. b3 {[%emt 0:02:19]} Bd5 {[%emt 0:02:54]} 21. c4 {[%emt 0:02:53]} Bxf3 {[%emt 0:08:14]} 22. Rxf3 {[%emt 0:00:38]} Rxf3 {[%emt 0:00:04]} 23. gxf3 {[%emt 0:02:51]} Bh4 {[%emt 0:06:45]} 24. Qe2 {[%emt 0:05:42]} Qf5 {[%emt 0:01:24]} 25. Qf1 {[%emt 0:02:21]} Qc2 {[%emt 0:02:20]} 26. Qg2 {[%emt 0:12:14]} Qxf2 {[%emt 0:03:15]} 27. Qxf2 {[%emt 0:00:08]} Bxf2 {[%emt 0:00:04]} 28. Rd1 {[%emt 0:02:33]} Bc5 {[%emt 0:00:17]} 29. Kg2 {[%emt 0:00:07]} Kf7 {[%emt 0:03:36]} 30. Nf1 {[%emt 0:00:10]} Ke6 {[%emt 0:00:12]} 31. Ng3 {[%emt 0:00:12]} d5 {[%emt 0:07:27]} 32. cxd5+ {[%emt 0:00:09]} cxd5 {[%emt 0:00:04]} 33. Rc1 {[%emt 0:01:21]} Kd6 {[%emt 0:00:38]} 34. Rd1 {[%emt 0:01:54]} Bd4 {[%emt 0:02:34]} 35. Ne2 {[%emt 0:00:22]} Be3 {[%emt 0:00:38]} 36. Nc3 {[%emt 0:01:25]} d4 {[%emt 0:00:11]} 37. Nb5+ {[%emt 0:00:32]} Ke6 {[%emt 0:06:08]} 38. Na3 {[%emt 0:00:37]} Rf6 {[%emt 0:00:49]} 39. Nc4 {[%emt 0:02:13]} Bf4 {[%emt 0:01:21]} 40. Kf2 {[%emt 0:00:00]} Kd5 {[%emt 0:00:00]} 41. Rg1 {[%emt 0:04:10]} g6 {[%emt 0:03:45]} 42. Ke2 {[%emt 0:00:25]} e4 {[%emt 0:03:41]} 43. fxe4+ {[%emt 0:00:07]} Kxe4 {[%emt 0:00:03]} 44. Rd1 {[%emt 0:00:28]} Rf5 {[%emt 0:06:39]} 45. Rg1 {[%emt 0:05:54]} d3+ {[%emt 0:01:26]} 46. Kd1 {[%emt 0:00:11]} Rh5 {[%emt 0:02:21]} 47. Rh1 {[%emt 0:00:15]} Kf3 {[%emt 0:01:24]} 0-1

[Event "EYCC Girls-U14 2019"]
[Site "Bratislava"]
[Date "2019.08.06"]
[Round "5.2"]
[White "Kirchei, Viktoriia"]
[Black "Nur-Mukhametova, Alisa"]
[Result "0-1"]
[ECO "C03"]
[WhiteElo "2006"]
[BlackElo "2126"]
[Annotator "NA"]
[PlyCount "136"]
[EventDate "2019.08.02"]
[EventType "swiss"]
[EventCountry "SVK"]
[SourceTitle "playchess.com"]
[Source "ChessBase"]
[SourceQuality "1"]
[TimeControl "40/5400+30:1800+30"]

1. e4 {[%emt 0:00:00]} e6 {[%emt 0:00:00]} 2. d4 {[%emt 0:00:00]} d5 {[%emt 0:00:00]} 3. Nd2 {[%emt 0:00:14]} Be7 {[%emt 0:00:46]} 4. Ngf3 {[%emt 0:00:28]} Nf6 {[%emt 0:00:09]} 5. e5 {[%emt 0:00:15]} Nfd7 {[%emt 0:00:01]} 6. Bd3 {[%emt 0:00:08]} c5 {[%emt 0:00:15]} 7. c3 {[%emt 0:00:03]} Nc6 {[%emt 0:00:06]} 8. O-O {[%emt 0:00:47]} g5 {[%emt 0:01:21]} 9. dxc5 {[%emt 0:03:54]} Ndxe5 {[%emt 0:01:29]} 10. Bb5 {[%emt 0:04:39]} Bd7 {[%emt 0:05:44]} 11. Nb3 {[%emt 0:23:54]} Nxf3+ {[%emt 0:14:28]} 12. Qxf3 {[%emt 0:00:05]} Ne5 {[%emt 0:00:37]} 13. Bxd7+ {[%emt 0:00:17]} Nxd7 {[%emt 0:07:15]} 14. Re1 {[%emt 0:08:32]} Nxc5 {[%emt 0:15:48]} 15. Bxg5 {[%emt 0:00:59]} Bxg5 {[%emt 0:09:27]} 16. Nxc5 {[%emt 0:00:08]} Qe7 {[%emt 0:00:32]} 17. Qg3 {[%emt 0:13:20]} O-O-O {[%emt 0:04:50]} 18. Nd3 {[%emt 0:03:27]} Rhg8 {[%emt 0:03:03]} 19. Qh3 {[%emt 0:01:31]} Qc7 {[%emt 0:01:41]} 20. a4 {[%emt 0:05:44]} Kb8 {[%emt 0:10:34]} 21. a5 {[%emt 0:03:16]} a6 {[%emt 0:01:25]} 22. Ra4 {[%emt 0:01:20]} Rg7 {[%emt 0:08:31]} 23. Qg3 {[%emt 0:06:11]} Qxg3 {[%emt 0:02:28]} 24. hxg3 {[%emt 0:00:09]} Be7 {[%emt 0:00:37]} 25. Nf4 {[%emt 0:05:44]} Bd6 {[%emt 0:01:20]} 26. Re3 {[%emt 0:06:05]} Rc8 {[%emt 0:03:54]} 27. Rf3 {[%emt 0:02:20]} Rg4 {[%emt 0:00:57]} 28. Rd4 {[%emt 0:01:59]} Bc5 {[%emt 0:01:37]} 29. Rd1 {[%emt 0:00:29]} Rc7 {[%emt 0:02:00]} 30. Kh2 {[%emt 0:02:01]} Bd6 {[%emt 0:00:20]} 31. Kh3 {[%emt 0:01:05]} Rg5 {[%emt 0:00:45]} 32. Re1 {[%emt 0:04:37]} Rc4 {[%emt 0:01:26]} 33. b3 {[%emt 0:00:38]} Re4 {[%emt 0:01:15]} 34. Rfe3 {[%emt 0:01:22]} Rxe3 {[%emt 0:01:01]} 35. Rxe3 {[%emt 0:00:23]} d4 {[%emt 0:00:50]} 36. Rd3 {[%emt 0:01:03]} Rxa5 {[%emt 0:00:51]} 37. Rxd4 {[%emt 0:00:19]} Kc7 {[%emt 0:00:07]} 38. Ne2 {[%emt 0:00:52]} Re5 {[%emt 0:00:35]} 39. Nf4 {[%emt 0:00:21]} Rc5 {[%emt 0:00:44]} 40. Ne2 {[%emt 0:00:00]} Re5 {[%emt 0:00:00]} 41. Nf4 {[%emt 0:01:02]} Rc5 {[%emt 0:08:43]} 42. Ne2 {[%emt 0:00:50]} b5 {[%emt 0:02:07]} 43. b4 {[%emt 0:03:55]} Re5 {[%emt 0:00:57]} 44. Nf4 {[%emt 0:03:01]} Re1 {[%emt 0:01:14]} 45. Kg4 {[%emt 0:03:25]} Kc6 {[%emt 0:02:32]} 46. Rd2 {[%emt 0:04:12]} Re4 {[%emt 0:08:18]} 47. Kg5 {[%emt 0:01:42]} Be5 {[%emt 0:00:49]} 48. Ne2 {[%emt 0:04:31]} Bg7 {[%emt 0:02:08]} 49. Kh5 {[%emt 0:05:17]} Re5+ {[%emt 0:01:11]} 50. Kg4 {[%emt 0:00:47]} Rd5 {[%emt 0:02:41]} 51. Ra2 {[%emt 0:01:18]} Kb6 {[%emt 0:00:36]} 52. Kf3 {[%emt 0:00:38]} Bxc3 {[%emt 0:01:12]} 53. Nxc3 {[%emt 0:00:12]} Rd3+ {[%emt 0:00:03]} 54. Ke4 {[%emt 0:00:10]} Rxc3 {[%emt 0:00:05]} 55. Rb2 {[%emt 0:00:05]} f6 {[%emt 0:00:33]} 56. Kd4 {[%emt 0:00:41]} Rc4+ {[%emt 0:00:10]} 57. Kd3 {[%emt 0:00:05]} h5 {[%emt 0:00:32]} 58. f4 {[%emt 0:01:47]} e5 {[%emt 0:02:48]} 59. Ke3 {[%emt 0:01:54]} a5 {[%emt 0:01:09]} 60. bxa5+ {[%emt 0:00:24]} Kxa5 {[%emt 0:00:02]} 61. Ra2+ {[%emt 0:00:36]} Kb6 {[%emt 0:00:32]} 62. Rd2 {[%emt 0:01:33]} Kc5 {[%emt 0:00:49]} 63. Rd8 {[%emt 0:00:33]} Rc3+ {[%emt 0:00:38]} 64. Kf2 {[%emt 0:01:02]} b4 {[%emt 0:00:29]} 65. Rc8+ {[%emt 0:00:19]} Kd4 {[%emt 0:00:14]} 66. Rf8 {[%emt 0:00:20]} b3 {[%emt 0:01:00]} 67. Rxf6 {[%emt 0:00:37]} b2 {[%emt 0:00:12]} 68. Rd6+ {[%emt 0:00:33]} Kc5 {[%emt 0:00:05]} 0-1

[Event "EYCC Girls-U14 2019"]
[Site "Bratislava"]
[Date "2019.08.06"]
[Round "5.3"]
[White "Allahverdiyeva, Ayan"]
[Black "Hakobyan, Astghik"]
[Result "1-0"]
[ECO "C07"]
[WhiteElo "2114"]
[BlackElo "1863"]
[Annotator "NA"]
[PlyCount "105"]
[EventDate "2019.08.02"]
[EventType "swiss"]
[EventCountry "SVK"]
[SourceTitle "playchess.com"]
[Source "ChessBase"]
[SourceQuality "1"]
[TimeControl "40/5400+30:1800+30"]

1. e4 {[%emt 0:00:46]} e6 {[%emt 0:00:00]} 2. d4 {[%emt 0:00:20]} d5 {[%emt 0:00:00]} 3. Nd2 {[%emt 0:00:15]} c5 {[%emt 0:00:23]} 4. exd5 {[%emt 0:03:52]} Qxd5 {[%emt 0:00:20]} 5. Ngf3 {[%emt 0:00:11]} cxd4 {[%emt 0:00:15]} 6. Bc4 {[%emt 0:00:05]} Qd6 {[%emt 0:00:09]} 7. O-O {[%emt 0:00:08]} Nf6 {[%emt 0:00:12]} 8. Nb3 {[%emt 0:00:05]} Nc6 {[%emt 0:00:07]} 9. Nbxd4 {[%emt 0:00:06]} Nxd4 {[%emt 0:00:08]} 10. Nxd4 {[%emt 0:00:04]} a6 {[%emt 0:00:19]} 11. Re1 {[%emt 0:01:14]} Be7 {[%emt 0:00:54]} 12. c3 {[%emt 0:00:45]} O-O {[%emt 0:00:07]} 13. Qf3 {[%emt 0:01:05]} Qc7 {[%emt 0:02:36]} 14. Bb3 {[%emt 0:00:19]} Rd8 {[%emt 0:03:09]} 15. h3 {[%emt 0:01:39]} Bd7 {[%emt 0:23:42]} 16. Bf4 {[%emt 0:10:24]} Bd6 {[%emt 0:07:09]} 17. Bxd6 {[%emt 0:00:26]} Qxd6 {[%emt 0:00:01]} 18. Qxb7 {[%emt 0:01:14]} e5 {[%emt 0:01:36]} 19. Nf3 {[%emt 0:09:29]} Rdb8 {[%emt 0:01:36]} 20. Rad1 {[%emt 0:00:15]} Qxd1 {[%emt 0:38:13]} 21. Qxb8+ {[%emt 0:00:06]} Rxb8 {[%emt 0:00:04]} 22. Rxd1 {[%emt 0:00:05]} Re8 {[%emt 0:02:48]} 23. Rd6 {[%emt 0:02:32]} Bb5 {[%emt 0:10:14]} 24. c4 {[%emt 0:01:54]} Ne4 {[%emt 0:00:47]} 25. Rd5 {[%emt 0:02:24]} Bc6 {[%emt 0:00:26]} 26. Ra5 {[%emt 0:02:03]} Bb7 {[%emt 0:01:58]} 27. Rxe5 {[%emt 0:01:04]} Rxe5 {[%emt 0:01:39]} 28. Nxe5 {[%emt 0:00:06]} Kf8 {[%emt 0:01:22]} 29. Bc2 {[%emt 0:00:56]} Ke7 {[%emt 0:02:41]} 30. b4 {[%emt 0:00:39]} f6 {[%emt 0:00:47]} 31. Nf3 {[%emt 0:00:59]} Nc3 {[%emt 0:00:51]} 32. a3 {[%emt 0:01:42]} Bxf3 {[%emt 0:00:40]} 33. gxf3 {[%emt 0:00:08]} Ne2+ {[%emt 0:00:05]} 34. Kg2 {[%emt 0:00:17]} g6 {[%emt 0:01:00]} 35. h4 {[%emt 0:01:06]} f5 {[%emt 0:00:29]} 36. c5 {[%emt 0:01:26]} Kd7 {[%emt 0:00:34]} 37. Bb3 {[%emt 0:02:31]} Nd4 {[%emt 0:00:26]} 38. Bg8 {[%emt 0:01:21]} h6 {[%emt 0:00:14]} 39. Bd5 {[%emt 0:02:36]} Kc7 {[%emt 0:00:55]} 40. f4 {[%emt 0:00:00]} Nc2 {[%emt 0:00:00]} 41. Bc4 {[%emt 0:05:27]} Kb7 {[%emt 0:09:14]} 42. Kf1 {[%emt 0:00:49]} Nd4 {[%emt 0:01:59]} 43. Bf7 {[%emt 0:00:35]} Kc6 {[%emt 0:06:19]} 44. Bxg6 {[%emt 0:01:10]} Kd5 {[%emt 0:00:57]} 45. Bf7+ {[%emt 0:03:23]} Ke4 {[%emt 0:03:37]} 46. Bc4 {[%emt 0:00:07]} Kxf4 {[%emt 0:00:41]} 47. Bxa6 {[%emt 0:00:05]} Ke5 {[%emt 0:00:33]} 48. Bb7 {[%emt 0:01:30]} Nc2 {[%emt 0:04:37]} 49. a4 {[%emt 0:00:15]} Nd4 {[%emt 0:03:50]} 50. a5 {[%emt 0:02:14]} Nb5 {[%emt 0:00:58]} 51. Bc6 {[%emt 0:00:09]} Na7 {[%emt 0:00:14]} 52. Bd7 {[%emt 0:00:46]} Kd5 {[%emt 0:00:40]} 53. b5 {[%emt 0:00:42]} 1-0

[Event "EYCC Girls-U14 2019"]
[Site "Bratislava"]
[Date "2019.08.06"]
[Round "5.4"]
[White "Bondareva, Daria"]
[Black "Wikar, Martyna"]
[Result "1/2-1/2"]
[ECO "B31"]
[WhiteElo "1998"]
[BlackElo "2020"]
[Annotator "NA"]
[PlyCount "66"]
[EventDate "2019.08.02"]
[EventType "swiss"]
[EventCountry "SVK"]
[SourceTitle "playchess.com"]
[Source "ChessBase"]
[SourceQuality "1"]
[TimeControl "40/5400+30:1800+30"]

1. e4 {[%emt 0:00:00]} c5 {[%emt 0:00:00]} 2. Nf3 {[%emt 0:00:25]} Nc6 {[%emt 0:00:00]} 3. Bb5 {[%emt 0:00:27]} g6 {[%emt 0:00:04]} 4. O-O {[%emt 0:04:04]} Bg7 {[%emt 0:00:07]} 5. Bxc6 {[%emt 0:04:36]} bxc6 {[%emt 0:00:10]} 6. Re1 {[%emt 0:02:07]} Nf6 {[%emt 0:00:30]} 7. d3 {[%emt 0:02:00]} O-O {[%emt 0:00:51]} 8. e5 {[%emt 0:13:48]} Nd5 {[%emt 0:01:21]} 9. c4 {[%emt 0:01:29]} Nc7 {[%emt 0:02:53]} 10. d4 {[%emt 0:02:47]} cxd4 {[%emt 0:05:29]} 11. Nxd4 {[%emt 0:00:03]} Bb7 {[%emt 0:03:06]} 12. Nb3 {[%emt 0:05:44]} Ne6 {[%emt 0:03:49]} 13. Bd2 {[%emt 0:04:36]} a5 {[%emt 0:02:24]} 14. Bc3 {[%emt 0:01:59]} a4 {[%emt 0:09:19]} 15. Nd4 {[%emt 0:00:35]} Nxd4 {[%emt 0:01:48]} 16. Bxd4 {[%emt 0:00:11]} Qa5 {[%emt 0:08:07]} 17. Na3 {[%emt 0:03:50]} c5 {[%emt 0:08:15]} 18. Bc3 {[%emt 0:01:59]} Qc7 {[%emt 0:00:43]} 19. Nc2 {[%emt 0:05:18]} Ra6 {[%emt 0:07:05]} 20. Qg4 {[%emt 0:06:07]} d5 {[%emt 0:08:43]} 21. cxd5 {[%emt 0:06:21]} Bxd5 {[%emt 0:00:12]} 22. Ne3 {[%emt 0:01:01]} Be6 {[%emt 0:00:55]} 23. Qe2 {[%emt 0:02:22]} Qb7 {[%emt 0:02:38]} 24. a3 {[%emt 0:05:40]} Bb3 {[%emt 0:03:09]} 25. Nc4 {[%emt 0:09:26]} Qa8 {[%emt 0:11:44]} 26. Nd2 {[%emt 0:02:19]} Bd5 {[%emt 0:01:37]} 27. f3 {[%emt 0:02:25]} f5 {[%emt 0:03:53]} 28. Rad1 {[%emt 0:02:08]} Be6 {[%emt 0:03:29]} 29. Nf1 {[%emt 0:04:19]} Bh6 {[%emt 0:04:14]} 30. Qf2 {[%emt 0:01:26]} Qa7 {[%emt 0:01:45]} 31. Qh4 {[%emt 0:01:39]} Bg7 {[%emt 0:00:43]} 32. Qf2 {[%emt 0:00:44]} Bh6 {[%emt 0:00:16]} 33. Qh4 {[%emt 0:00:04]} Bg7 {[%emt 0:00:16]} 1/2-1/2

[Event "EYCC Girls-U14 2019"]
[Site "Bratislava"]
[Date "2019.08.06"]
[Round "5.5"]
[White "Zeliantsova, Kseniya"]
[Black "Tarasenka, Aliaksandra"]
[Result "1/2-1/2"]
[ECO "B31"]
[WhiteElo "1907"]
[BlackElo "2231"]
[Annotator "NA"]
[PlyCount "149"]
[EventDate "2019.08.02"]
[EventType "swiss"]
[EventCountry "SVK"]
[SourceTitle "playchess.com"]
[Source "ChessBase"]
[SourceQuality "1"]
[TimeControl "40/5400+30:1800+30"]

1. e4 {[%emt 0:00:00]} c5 {[%emt 0:00:00]} 2. Nf3 {[%emt 0:00:00]} Nc6 {[%emt 0:00:00]} 3. Bb5 {[%emt 0:00:00]} g6 {[%emt 0:00:10]} 4. O-O {[%emt 0:00:00]} Bg7 {[%emt 0:00:13]} 5. c3 {[%emt 0:00:16]} Nf6 {[%emt 0:00:33]} 6. e5 {[%emt 0:00:58]} Nd5 {[%emt 0:00:24]} 7. d4 {[%emt 0:02:01]} cxd4 {[%emt 0:00:40]} 8. cxd4 {[%emt 0:02:58]} O-O {[%emt 0:00:57]} 9. Nc3 {[%emt 0:02:48]} Nxc3 {[%emt 0:00:47]} 10. bxc3 {[%emt 0:00:04]} d6 {[%emt 0:00:31]} 11. exd6 {[%emt 0:05:43]} Qxd6 {[%emt 0:00:19]} 12. Re1 {[%emt 0:15:01]} a6 {[%emt 0:10:31]} 13. Bxc6 {[%emt 0:10:12]} Qxc6 {[%emt 0:04:32]} 14. Bd2 {[%emt 0:01:05]} Re8 {[%emt 0:06:24]} 15. Ne5 {[%emt 0:02:25]} Qc7 {[%emt 0:07:15]} 16. Qf3 {[%emt 0:02:22]} f6 {[%emt 0:27:25]} 17. Nd3 {[%emt 0:08:38]} e5 {[%emt 0:08:34]} 18. Rab1 {[%emt 0:11:00]} Rb8 {[%emt 0:08:28]} 19. Rb2 {[%emt 0:18:32]} b6 {[%emt 0:06:01]} 20. dxe5 {[%emt 0:02:01]} fxe5 {[%emt 0:00:48]} 21. Qe3 {[%emt 0:00:15]} Bf5 {[%emt 0:03:07]} 22. h3 {[%emt 0:04:57]} Rbd8 {[%emt 0:03:25]} 23. Nc1 {[%emt 0:01:01]} b5 24. Nb3 Rd3 {[%emt 0:01:30]} 25. Qc5 {[%emt 0:00:35]} Rc8 {[%emt 0:01:22]} 26. Qxc7 {[%emt 0:03:19]} Rxc7 {[%emt 0:00:05]} 27. g4 {[%emt 0:02:49]} Bc8 {[%emt 0:02:21]} 28. Re3 {[%emt 0:01:33]} Rxe3 {[%emt 0:01:54]} 29. Bxe3 {[%emt 0:00:16]} Rxc3 {[%emt 0:00:49]} 30. Rd2 {[%emt 0:00:02]} Kf7 {[%emt 0:02:18]} 31. Nc5 {[%emt 0:01:31]} Bf8 {[%emt 0:01:24]} 32. Ne4 {[%emt 0:00:50]} Rc6 {[%emt 0:01:03]} 33. Rd5 {[%emt 0:01:29]} Ke6 {[%emt 0:01:07]} 34. Rd8 {[%emt 0:00:50]} Be7 {[%emt 0:00:54]} 35. Ng5+ {[%emt 0:00:08]} Bxg5 {[%emt 0:00:40]} 36. Bxg5 {[%emt 0:00:04]} Rc7 {[%emt 0:00:52]} 37. Be3 {[%emt 0:01:16]} Bb7 {[%emt 0:00:26]} 38. Rb8 {[%emt 0:01:04]} Kd5 {[%emt 0:00:32]} 39. Rd8+ {[%emt 0:00:43]} Kc4 {[%emt 0:00:32]} 40. Bb6 {[%emt 0:00:00]} Re7 {[%emt 0:00:00]} 41. Kf1 {[%emt 0:06:37]} b4 {[%emt 0:06:28]} 42. Rd1 {[%emt 0:05:18]} Kb5 {[%emt 0:07:43]} 43. Be3 {[%emt 0:03:03]} Rc7 {[%emt 0:03:09]} 44. Ke2 {[%emt 0:00:18]} Rc2+ {[%emt 0:03:49]} 45. Rd2 {[%emt 0:00:02]} Rxd2+ {[%emt 0:09:57]} 46. Kxd2 {[%emt 0:00:07]} Bd5 {[%emt 0:01:16]} 47. a3 bxa3 {[%emt 0:00:11]} 48. Kc2 {[%emt 0:00:11]} Kc4 {[%emt 0:00:33]} 49. Kb1 {[%emt 0:01:07]} Be6 {[%emt 0:00:55]} 50. Ka2 {[%emt 0:01:34]} Kb4+ {[%emt 0:00:15]} 51. Ka1 {[%emt 0:00:08]} Kc3 {[%emt 0:00:24]} 52. Bc1 {[%emt 0:02:17]} Kd3 {[%emt 0:00:31]} 53. g5 {[%emt 0:02:42]} Ke2 {[%emt 0:00:41]} 54. Be3 {[%emt 0:00:13]} Kf3 {[%emt 0:00:24]} 55. Kb1 {[%emt 0:00:13]} Kg2 {[%emt 0:00:25]} 56. Ka1 {[%emt 0:00:10]} Kxh3 {[%emt 0:00:15]} 57. Kb1 {[%emt 0:00:23]} Kg4 {[%emt 0:00:11]} 58. Ka1 {[%emt 0:00:11]} Bg8 {[%emt 0:00:16]} 59. Kb1 {[%emt 0:00:25]} Kf5 {[%emt 0:00:47]} 60. Ka1 {[%emt 0:00:11]} h5 {[%emt 0:00:34]} 61. gxh6 {[%emt 0:00:05]} g5 {[%emt 0:00:16]} 62. h7 {[%emt 0:00:50]} Bxh7 {[%emt 0:00:04]} 63. Ka2 {[%emt 0:00:02]} g4 {[%emt 0:00:36]} 64. Kxa3 {[%emt 0:00:13]} Ke4 {[%emt 0:00:12]} 65. Bb6 {[%emt 0:00:04]} Kf3 {[%emt 0:00:33]} 66. Ka4 {[%emt 0:00:15]} Bd3 {[%emt 0:00:20]} 67. Ka5 {[%emt 0:00:06]} e4 {[%emt 0:00:15]} 68. Ka4 {[%emt 0:00:31]} g3 {[%emt 0:01:10]} 69. fxg3 {[%emt 0:00:04]} Kxg3 {[%emt 0:00:04]} 70. Ka5 {[%emt 0:00:08]} Kf3 {[%emt 0:00:06]} 71. Ka4 {[%emt 0:00:04]} e3 {[%emt 0:00:14]} 72. Bxe3 {[%emt 0:00:05]} Kxe3 {[%emt 0:00:04]} 73. Ka3 {[%emt 0:00:03]} Kd2 {[%emt 0:00:11]} 74. Ka2 {[%emt 0:00:04]} Kc1 {[%emt 0:00:10]} 75. Ka1 {[%emt 0:00:16]} 1/2-1/2